Workbook

Sheet Swindle - Summer 2024
B3: SATURDAY SWINDLE - SUMMER 2024
B4: BEST 20 ROUNDS
D5: Total | E5: Ave | G5: Swindle | K5: Latest Result - 27 April 2024
C6: Rounds | D6: S'ford | E6: S'ford | F6: Wins | G6: Pts | L6: Stableford | M6: Swindle
A7: =A6+1 -> 1 | B7: Colin Reardon | C7: 4 | D7: =36+40+38+36 -> 150 | E7: =D7/C7 -> 37.5 | F7: 1 | G7: =19+25+17+19 -> 80 | L7: Points | M7: Points
A8: 2 | B8: Bryn Owen | C8: 4 | D8: =31+35+40+36 -> 142 | E8: =D8/C8 -> 35.5 | F8: 1 | G8: =11+21+22+15 -> 69 | J8: 1 | K8: Simon Hill | L8: 36 | M8: 22
A9: 3 | B9: Simon Hill | C9: 4 | D9: =39+29+28+36 -> 132 | E9: =D9/C9 -> 33 | F9: 2 | G9: =22+8+4+22 -> 56 | J9: =J8+1 -> 2 | K9: Colin Reardon | L9: 36 | M9: 19
A10: 4 | B10: Les Bygrave | C10: 4 | D10: =28+31+29+36 -> 124 | E10: =D10/C10 -> 31 | G10: =5+14+7+16 -> 42 | J10: =J9+1 -> 3 | K10: Tim Lloyd | L10: 36 | M10: 17
A11: 5 | B11: Terry Poingdestre | C11: 4 | D11: =29+29+33+33 -> 124 | E11: =D11/C11 -> 31 | G11: =7+7+14+10 -> 38 | J11: 4 | K11: Les Bygrave | L11: 36 | M11: 16
A12: 6 | B12: Adam Witherington | C12: 4 | D12: =28+31+29+34 -> 122 | E12: =D12/C12 -> 30.5 | G12: =6+13+6+13 -> 38 | J12: 5 | K12: Bryn Owen | L12: 36 | M12: 15
A13: 7 | B13: John Fitzgerald | C13: 4 | D13: =26+32+37+30 -> 125 | E13: =D13/C13 -> 31.25 | G13: =1+16+14+5 -> 36 | J13: 6 | K13: Trevor Vincent | L13: 35 | M13: 14
A14: 8 | B14: Andy Vittery | C14: 2 | D14: =33+39 -> 72 | E14: =D14/C14 -> 36 | G14: =15+18 -> 33 | J14: 7 | K14: Adam Witherington | L14: 34 | M14: 13
A15: 9 | B15: Scott Browning | C15: 3 | D15: =34+28+32 -> 94 | E15: =D15/C15 -> 31.33333333 | G15: =19+5+9 -> 33 | J15: 8 | K15: Iain Maxwell | L15: 34 | M15: 12
A16: 10 | B16: John Copas | C16: 2 | D16: =31+36 -> 67 | E16: =D16/C16 -> 33.5 | G16: =9+23 -> 32 | J16: 9 | K16: Colin Price | L16: 34 | M16: 11
A17: 11 | B17: Phil Nathan | C17: 2 | D17: =31+34 -> 65 | E17: =D17/C17 -> 32.5 | G17: =12+20 -> 32 | J17: 10 | K17: Terry Poingdestre | L17: 33 | M17: 10
A18: 12 | B18: Roger Keen | C18: 4 | D18: =28+30+34+28 -> 120 | E18: =D18/C18 -> 30 | G18: =4+11+15+2 -> 32 | J18: 11 | K18: Scott Browning | L18: 32 | M18: 9
A19: 13 | B19: Tim Lloyd | C19: 3 | D19: =29+29+36 -> 94 | E19: =D19/C19 -> 31.33333333 | G19: =6+8+17 -> 31 | J19: 12 | K19: Nick Hayward | L19: 32 | M19: 8
A20: 14 | B20: Simon Cook | C20: 3 | D20: =32+28+33 -> 93 | E20: =D20/C20 -> 31 | G20: =13+5+13 -> 31 | J20: 13 | K20: Martin Thomas | L20: 30 | M20: 7
A21: 15 | B21: Brad Bygrave | C21: 4 | D21: =34+28+31+26 -> 119 | E21: =D21/C21 -> 29.75 | G21: =17+3+10+1 -> 31 | J21: 14 | K21: Tim Horan | L21: 30 | M21: 6
A22: 16 | B22: Paul Sims | C22: 3 | D22: =32+32+25 -> 89 | E22: =D22/C22 -> 29.66666667 | G22: =14+15+2 -> 31 | J22: 15 | K22: John Fitzgerald | L22: 30 | M22: 5
A23: 17 | B23: Kevin Poore | C23: 2 | D23: =30+40 -> 70 | E23: =D23/C23 -> 35 | G23: =10+20 -> 30 | J23: 16 | K23: John Machin | L23: 29 | M23: 4
A24: 18 | B24: Nick Hayward | C24: 3 | D24: =34+28+32 -> 94 | E24: =D24/C24 -> 31.33333333 | G24: =16+3+8 -> 27 | J24: 17 | K24: Phil Hames | L24: 28 | M24: 3
A25: 19 | B25: Colin Price | C25: 3 | D25: =26+32+34 -> 92 | E25: =D25/C25 -> 30.66666667 | G25: =1+11+11 -> 23 | J25: 18 | K25: Roger Keen | L25: 28 | M25: 2
A26: 20 | B26: John Machin | C26: 4 | D26: =27+28+32+29 -> 116 | E26: =D26/C26 -> 29 | G26: =3+2+12+4 -> 21 | J26: 19 | K26: Brad Bygrave | L26: 26 | M26: 1
A27: 21 | B27: Martin Thomas | C27: 3 | D27: =28+31+30 -> 89 | E27: =D27/C27 -> 29.66666667 | G27: =4+9+7 -> 20
A28: 22 | B28: Neil Hawes | C28: 2 | D28: =33+25 -> 58 | E28: =D28/C28 -> 29 | G28: =18+1 -> 19
A29: 23 | B29: Dennis Cantwell | C29: 1 | D29: 33 | E29: =D29/C29 -> 33 | G29: 17
A30: 24 | B30: Tim Horan | C30: 2 | D30: =31+30 -> 61 | E30: =D30/C30 -> 30.5 | G30: =10+6 -> 16
A31: 25 | B31: Phil Hames | C31: 2 | D31: =31+28 -> 59 | E31: =D31/C31 -> 29.5 | G31: =12+3 -> 15
A32: 26 | B32: Trevor Vincent | C32: 1 | D32: =35 -> 35 | E32: =D32/C32 -> 35 | G32: =14 -> 14
A33: 27 | B33: Iain Maxwell | C33: 2 | D33: =26+34 -> 60 | E33: =D33/C33 -> 30 | G33: =2+12 -> 14
A34: 28 | B34: Simon Lloyd | C34: 1 | D34: 30 | E34: =D34/C34 -> 30 | G34: 9
A35: 29 | B35: Paul Reardon | C35: 1 | D35: 29 | E35: =D35/C35 -> 29 | G35: 8
E37: =CONCATENATE("Scores after round on ",MID(K5,17,17)) -> Scores after round on 27 April 2024
E38: Rounds: | F38: =SUM(F6:F35) -> 4
